fUSD/lending_fUSD_20250716
["ID","MTS","AMOUNT","RATE_DAILY","PERIOD"]
[372565629,1752685833787,-2226.13772182,0.00019982,2]
[372565630,1752685833797,-4839.50407822,0.00019999,2]
[372565631,1752685833811,-4400.67645706,0.00019999,2]
[372565635,1752685838225,-3646.76827121,0.00019999,2]
[372565636,1752685838239,-6568.6,0.00019999,2]
[372565637,1752685838280,-2743.00340848,0.00019999,2]
[372565638,1752685838337,-14791.08421707,0.00019999,2]
[372565639,1752685838348,-1917.8,0.0002,2]
[372565640,1752685838360,-80938.5982301,0.0002,8]
[372565641,1752685838375,-1796.55382209,0.00020003,2]
[372565642,1752685838387,-503.0,0.00020006,2]
[372565643,1752685838399,-2226.13772182,0.0002006,2]
[372565644,1752685838411,-800.0,0.000201,7]
[372565645,1752685838422,-1796.55382209,0.00020107,2]
[372565646,1752685838433,-2500.0,0.00020125,2]
[372565647,1752685838447,-2226.13772182,0.00020138,2]
[372565648,1752685838461,-1114.65,0.00020145,2]
[372565649,1752685838476,-5819.0,0.00020145,2]
[372565650,1752685838493,-150.0,0.00020168,4]
[372565651,1752685838507,-161.76,0.00020187,2]
[372565652,1752685838520,-2500.0,0.00020191,2]
[372565653,1752685838531,-1700.0,0.000202,7]
[372565654,1752685838545,-1000.0,0.00020201,2]
[372565655,1752685838558,-2500.0,0.00020201,2]
[372565656,1752685838573,-250.0,0.00020201,2]
[372565657,1752685838588,-150.0,0.00020201,2]
[372565659,1752685838602,-300.0,0.00020201,2]
[372565661,1752685838614,-1796.55382209,0.0002021,2]
[372565663,1752685838626,-2226.13772182,0.00020216,2]
[372565666,1752685838637,-2500.0,0.00020226,2]
[372565668,1752685838650,-420.0,0.00020229,2]
[372565670,1752685838664,-150.0,0.00020242,2]
[372565673,1752685838677,-156.02096772,0.00020274,2]
[372565675,1752685838692,-1835.75825,0.00020291,8]
[372565678,1752685838706,-2226.13772182,0.00020294,2]
[372565680,1752685838719,-2500.0,0.000203,7]
[372565682,1752685838732,-1796.55382209,0.00020314,3]
[372565685,1752685838746,-1680.0,0.00020328,2]
[372565687,1752685838760,-2226.13772182,0.00020372,2]
[372565690,1752685838772,-3400.0,0.000204,7]
[372565693,1752685838785,-1174.53632019,0.00020406,2]
[372565695,1752685838798,-1796.55382209,0.00020417,3]
[372565697,1752685838812,-397.0,0.00020425,2]
[372565700,1752685838826,-1174.53632013,0.00020428,2]
[372565702,1752685838839,-397.0,0.00020435,2]
[372565705,1752685838851,-2226.13772182,0.0002045,2]
[372565707,1752685838862,-1174.53632013,0.0002045,2]
[372565709,1752685838873,-1174.53632013,0.00020473,2]
[372565711,1752685838885,-4200.0,0.000205,7]
[372565714,1752685838900,-838.7287696,0.000205,7]
[372565716,1752685838913,-476.61752775,0.000205,7]
[372565718,1752685838924,-3078.11811376,0.000205,2]
[372565720,1752685838935,-126567.01632553,0.000205,2]
[372565723,1752685838947,-3976.7846,0.00020506,2]
[372565725,1752685838959,-776.1447,0.00020506,2]
[372565727,1752685838974,-2676.8815,0.00020506,2]
[372565730,1752685838986,-273.9373,0.00020506,2]
[372565732,1752685838997,-4058.652,0.00020518,2]
[372565734,1752685839009,-1796.55382209,0.00020521,3]
[372565736,1752685839021,-152.0,0.00020524,3]
[372565739,1752685839042,-6044.0,0.00020524,2]
[372565742,1752685839054,-861.0,0.00020524,2]
[372565744,1752685839065,-21351.0,0.00020524,2]
[372565746,1752685839077,-4122.0,0.00020524,2]
[372565749,1752685839089,-2226.13772182,0.00020528,2]
[372565751,1752685839102,-200.0,0.0002054,2]
[372565753,1752685839114,-208.323,0.00020596,2]
[372565756,1752685839126,-800.0,0.000206,7]
[372565758,1752685839138,-1746.0,0.000206,2]
[372565760,1752685839149,-1000.0,0.00020602,2]
[372565762,1752685839160,-2392.4807971,0.00020606,2]
[372565765,1752685839173,-526.45042819,0.00020606,2]
[372565767,1752685839185,-2069.35306,0.00020606,2]
[372565769,1752685839197,-168.90242519,0.00020606,2]
[372565771,1752685839208,-2226.13772182,0.00020606,2]
[372565774,1752685839220,-180.81430395,0.00020606,2]
[372565776,1752685839232,-2392.4807971,0.00020606,2]
[372565778,1752685839243,-1000.0,0.00020606,2]
[372565780,1752685839255,-1000.0,0.00020606,2]
[372565783,1752685839267,-5000.0,0.00020606,2]
[372565785,1752685839278,-225.91,0.00020617,2]
[372565787,1752685839290,-1796.55382209,0.00020624,3]
[372565789,1752685839303,-215.0738,0.00020629,2]
[372565792,1752685839314,-150.0,0.00020685,4]
[372565794,1752685839328,-150.0,0.00020685,4]
[372565796,1752685839340,-150.0,0.00020685,4]
[372565798,1752685839351,-150.0,0.00020685,4]
[372565801,1752685839367,-101529.0,0.00020685,2]
[372565803,1752685839379,-5800.0,0.00020691,2]
[372565805,1752685839392,-583.0,0.00020694,2]
[372565808,1752685839404,-500.0,0.00020694,2]
[372565810,1752685839417,-150.0,0.00020694,2]
[372565812,1752685839428,-150.0,0.00020694,2]
[372565814,1752685839440,-500.0,0.00020694,2]
[372565816,1752685839452,-680.0,0.00020694,2]
[372565819,1752685839463,-500.0,0.00020694,2]
[372565821,1752685839475,-150.0,0.00020694,2]
[372565823,1752685839487,-500.0,0.00020694,2]
[372565825,1752685839499,-456.0,0.00020694,2]
[372565828,1752685839510,-150.0,0.00020694,2]
[372565830,1752685839522,-500.0,0.00020694,2]
[372565832,1752685839534,-500.0,0.00020694,2]
[372565834,1752685839547,-500.0,0.00020694,2]
[372565837,1752685839559,-150.0,0.00020694,2]
[372565839,1752685839571,-150.74719734,0.00020694,2]
[372565841,1752685839582,-500.0,0.00020694,2]
[372565843,1752685839595,-150.56135786,0.00020694,2]
[372565846,1752685839607,-500.0,0.00020694,2]
[372565848,1752685839619,-500.0,0.00020694,2]
[372565850,1752685839631,-500.0,0.00020694,2]
[372565852,1752685839643,-500.0,0.00020694,2]
[372565855,1752685839655,-500.0,0.00020694,2]
[372565857,1752685839666,-203.98541512,0.00020694,2]
[372565859,1752685839678,-150.0,0.00020694,2]
[372565861,1752685839689,-150.0,0.00020694,2]
[372565863,1752685839702,-150.0,0.00020694,2]
[372565866,1752685839713,-500.0,0.00020694,2]
[372565868,1752685839726,-500.0,0.00020694,2]
[372565870,1752685839737,-150.0,0.00020694,2]
[372565872,1752685839749,-500.0,0.00020694,2]
[372565875,1752685839761,-150.0,0.00020694,2]
[372565877,1752685839772,-150.0,0.00020694,2]
[372565879,1752685839783,-1657.0,0.00020694,2]
[372565881,1752685839795,-500.0,0.00020694,2]
[372565883,1752685839808,-150.0,0.00020694,2]
[372565886,1752685839829,-500.0,0.00020694,2]
[372565888,1752685839840,-150.0,0.00020694,2]
[372565890,1752685839852,-158.76449721,0.00020694,2]
[372565892,1752685839864,-425.0,0.00020694,2]
[372565894,1752685839876,-539.0,0.00020694,2]
[372565896,1752685839888,-168.93931772,0.00020694,2]
[372565898,1752685839900,-500.0,0.00020694,2]
[372565900,1752685839912,-4948.0,0.00020694,2]
[372565902,1752685839924,-500.0,0.00020694,2]
[372565904,1752685839936,-2051.0,0.00020694,2]
[372565906,1752685839948,-4371.6861955,0.00020695,2]
[372565909,1752685839960,-3183.1348135,0.00020695,2]
[372565911,1752685839971,-1906.8284272,0.00020695,2]
[372565913,1752685839983,-157.91406332,0.00020696,2]
[372565915,1752685839995,-157.91406332,0.00020696,2]
[372565917,1752685840007,-157.91406332,0.00020696,2]
[372565920,1752685840019,-250.0,0.000207,2]
[372565922,1752685840031,-250.0,0.000207,2]
[372565924,1752685840043,-250.0,0.000207,2]
[372565926,1752685840055,-250.0,0.000207,2]
[372565928,1752685840066,-250.0,0.000207,2]
[372565931,1752685840078,-250.0,0.000207,2]
[372565933,1752685840091,-250.0,0.000207,2]
[372565935,1752685840102,-250.0,0.000207,2]
[372565937,1752685840114,-250.0,0.000207,2]
[372565940,1752685840125,-250.0,0.000207,2]
[372565942,1752685840138,-500.0,0.000207,2]
[372565944,1752685840149,-800.0,0.000207,7]
[372565946,1752685840161,-774.26305295,0.000207,2]
[372565948,1752685840173,-5800.0,0.000207,2]
[372565951,1752685840185,-849.22,0.00020704,2]
[372565953,1752685840198,-849.22,0.00020704,2]
[372565955,1752685840209,-849.22,0.00020704,2]
[372565957,1752685840220,-849.22,0.00020704,2]
[372565959,1752685840231,-849.22,0.00020704,2]
[372565962,1752685840244,-849.22,0.00020704,2]
[372565964,1752685840255,-849.22,0.00020704,2]
[372565966,1752685840266,-849.22,0.00020704,2]
[372565969,1752685840278,-849.22,0.00020704,2]
[372565972,1752685840290,-849.22,0.00020704,2]
[372565975,1752685840302,-849.22,0.00020704,2]
[372565977,1752685840315,-849.22,0.00020704,2]
[372565979,1752685840326,-849.22,0.00020704,2]
[372565981,1752685840339,-849.22,0.00020704,2]
[372565983,1752685840351,-849.22,0.00020704,2]
[372565988,1752685840364,-849.22,0.00020704,2]
[372565992,1752685840379,-849.22,0.00020704,2]
[372565994,1752685840390,-849.22,0.00020704,2]
[372565996,1752685840401,-849.22,0.00020704,2]
[372565998,1752685840414,-849.22,0.00020704,2]
[372566000,1752685840425,-849.22,0.00020704,2]
[372566003,1752685840437,-849.22,0.00020704,2]
[372566005,1752685840450,-849.22,0.00020704,2]
[372566007,1752685840463,-849.27278813,0.00020704,2]
[372566009,1752685840474,-1089.5282362,0.00020705,5]
[372566012,1752685840486,-1000.0,0.00020705,2]
[372566014,1752685840499,-1000.0,0.00020705,3]
[372566015,1752685840510,-1000.0,0.00020705,4]
[372566018,1752685840522,-666.0,0.00020705,2]
[372566020,1752685840535,-1000.0,0.00020705,5]
[372566022,1752685840546,-1000.0,0.00020705,2]
[372566024,1752685840557,-300.0,0.00020705,2]
[372566026,1752685840569,-5948.05,0.00020705,2]
[372566028,1752685840581,-300.0,0.00020705,2]
[372566031,1752685840592,-666.0,0.00020705,2]
[372566033,1752685840603,-243.79077576,0.00020705,2]
[372566035,1752685840614,-442954.4750516,0.00020706,2]
[372566037,1752685840625,-6115157.63800221,0.00020706,2]
[372566040,1752685840642,-1089.94108,0.00020706,2]
[372566043,1752685840660,-9657.702795,0.00020706,2]
[372566044,1752685840674,-831.1037741,0.00020706,2]
[372566045,1752685840703,-933.37523237,0.000207,2]
[372566046,1752685840718,-66.62476763,0.000207,2]
[372566047,1752685840730,-10338.47261707,0.00020706,2]
[372566103,1752685841418,-1000.0,0.00020606,2]
[372566106,1752685841431,-16201.90711306,0.00020706,2]
[372566195,1752685842101,-12128.82398217,0.00020706,2]
[372566201,1752685842340,-3037.39341173,0.00020706,2]
[372566285,1752685843140,-1174.53632013,0.00020495,2]
[372566287,1752685843150,-46646.13818677,0.00020706,2]
[372566289,1752685843161,-1332.67335646,0.00020706,2]
[372566293,1752685843182,-3289.99999999,0.00020706,2]
[372566295,1752685843193,-1230.84391413,0.00020706,2]
[372566318,1752685843319,-1479.85,0.00020706,2]
[372566320,1752685843331,-433.4874,0.00020706,2]
[372566475,1752685844944,-3000.0,0.00020706,2]
[372566614,1752685846325,-1174.53632013,0.00020517,2]
[372566616,1752685846335,-1344.94167987,0.00020706,2]
[372566665,1752685846838,-1166.0,0.00020524,2]
[372566667,1752685846848,-274235.29007159,0.00020706,2]
[372566671,1752685846871,-300.8886001,0.00020706,2]
[372566676,1752685846911,-63211.22399125,0.00020706,2]
[372568421,1752685865157,1415.0,0.000231,120]
[372568724,1752685868587,822.0,0.000231,120]
[372568795,1752685869561,1779.0,0.000231,120]
[372569243,1752685875308,425.04156824,0.00017945,2]
[372569244,1752685955010,171.97,0.00015422,2]
[372569245,1752685977038,1575.0,0.000231,120]
[372569246,1752685980181,875.0,0.000231,120]
[372569247,1752685980727,1177.0,0.000231,120]
[372569248,1752685991080,443.94455402,0.000231,120]
[372569249,1752686045078,1272.0,0.000231,120]
[372569251,1752686214082,265.16326158,0.00018144,2]
[372569252,1752686458943,510.0,0.00018032,2]
[372569253,1752686480429,2500.0,0.00023,30]
[372569254,1752686482964,204.42644828,0.00018139,2]
[372569260,1752686781731,394644.51555017,0.000209,30]
[372569269,1752686849837,163.3,0.00013699,2]
[372569280,1752686921410,4941.77982668,0.000151,2]
[372569281,1752686921433,10000.0,0.000151,2]
[372569282,1752686921456,10000.0,0.000151,2]
[372569283,1752686921479,3832.60924089,0.000151,2]
[372569285,1752686989296,2000.0,0.00018161,2]
[372569295,1752687031561,-151.0,0.00018218,2]
[372569296,1752687031571,-300.0,0.0001822,2]
[372569297,1752687031582,-50.84968142,0.0001822,2]
[372569298,1752687031594,-949.15031858,0.0001822,2]
[372569299,1752687031603,-150.0,0.00018222,2]
[372569300,1752687031614,-250.0,0.00018223,2]
[372569301,1752687031624,-150.0,0.00018223,2]
[372569302,1752687031633,-151.0,0.00018228,2]
[372569303,1752687031643,-151.0,0.00018231,2]
[372569304,1752687031653,-151.0,0.00018235,2]
[372569305,1752687031663,-300.0,0.00018239,2]
[372569306,1752687031673,-1000.0,0.00018239,2]
[372569307,1752687031688,-150.0,0.0001826,2]
[372569308,1752687031698,-1000.0,0.00018269,2]
[372569309,1752687031707,-250.0,0.0001829,2]
[372569310,1752687031717,-250.0,0.00018292,2]
[372569311,1752687031727,-537.69,0.00018329,2]
[372569312,1752687031737,-1200.0,0.0001833,2]
[372569313,1752687031747,-5395.18268142,0.00018331,2]
[372569314,1752687031761,-5768.86731858,0.00018331,2]
[372569315,1752687031770,-9361.13268142,0.00018388,2]
[372569316,1752687031782,-2333.20379745,0.00018388,2]
[372569317,1752687031800,-2473.28196048,0.00018388,2]
[372569318,1752687031840,-257.87729221,0.00018388,2]
[372569319,1752687031852,-57.38426844,0.00018388,2]
[372569320,1752687031863,-2751.0,0.00018393,2]
[372569322,1752687031873,-150.0,0.00018616,2]
[372569324,1752687031884,-150.00000001,0.00018616,2]
[372569326,1752687031893,-150.0,0.00018616,2]
[372569328,1752687031903,-150.0,0.00018616,2]
[372569329,1752687031912,-150.0,0.00018616,2]
[372569330,1752687031921,-923.0,0.00018688,2]
[372569331,1752687031931,-850.0,0.00018688,2]
[372569332,1752687031940,-23900.0,0.00018689,2]
[372569333,1752687031950,-1000.0,0.00018767,2]
[372569334,1752687031959,-440.93,0.00018787,2]
[372569335,1752687031969,-366.79,0.00018807,2]
[372569336,1752687031979,-200.0,0.00018863,2]
[372569337,1752687031988,-162.56,0.00018875,2]
[372569338,1752687031997,-299.99,0.00018875,4]
[372569339,1752687032006,-946.06,0.00018897,2]
[372569340,1752687032016,-1425.26937933,0.000189,2]
[372569341,1752687032025,-1416.0,0.00018991,2]
[372569342,1752687032035,-190.0,0.00018993,7]
[372569343,1752687032044,-537.69,0.00019016,2]
[372569344,1752687032053,-1425.26937929,0.00019038,2]
[372569345,1752687032062,-1425.26937929,0.00019176,2]
[372569346,1752687032072,-158.27676376,0.00019178,2]
[372569348,1752687032082,-177.41,0.00019178,2]
[372569350,1752687032092,-600.0,0.00019179,2]
[372569352,1752687032101,-600.0,0.00019179,2]
[372569354,1752687032111,-600.0,0.00019179,2]
[372569355,1752687032121,-571.14,0.00019179,2]
[372569356,1752687032130,-151.0,0.00019215,2]
[372569357,1752687032139,-600.0,0.00019215,2]
[372569358,1752687032334,-600.0,0.00019215,2]
[372569359,1752687032350,-600.0,0.00019215,2]
[372569360,1752687032360,-600.0,0.00019215,2]
[372569361,1752687032369,-600.0,0.00019215,2]
[372569362,1752687032379,-600.0,0.00019215,2]
[372569363,1752687032389,-600.0,0.00019215,2]
[372569364,1752687032399,-600.0,0.00019215,2]
[372569365,1752687032408,-151.0,0.00019215,2]
[372569366,1752687032418,-500.0,0.00019215,2]
[372569367,1752687032428,-600.0,0.00019215,2]
[372569368,1752687032438,-500.0,0.00019215,2]
[372569369,1752687032447,-151.0,0.00019215,2]
[372569370,1752687032457,-500.0,0.00019215,2]
[372569371,1752687032466,-151.0,0.00019215,2]
[372569372,1752687032476,-600.0,0.00019215,2]
[372569373,1752687032486,-500.0,0.00019215,2]
[372569374,1752687032496,-151.0,0.00019215,2]
[372569375,1752687032506,-600.0,0.00019215,2]
[372569376,1752687032515,-500.0,0.00019215,2]
[372569377,1752687032525,-500.0,0.00019215,2]
[372569378,1752687032535,-600.0,0.00019215,2]
[372569379,1752687032545,-151.0,0.00019215,2]
[372569380,1752687032555,-500.0,0.00019215,2]
[372569381,1752687032564,-600.0,0.00019215,2]
[372569382,1752687032574,-151.0,0.00019215,2]
[372569383,1752687032583,-500.0,0.00019215,2]
[372569384,1752687032593,-151.0,0.00019215,2]
[372569385,1752687032603,-600.0,0.00019215,2]
[372569386,1752687032614,-151.0,0.00019215,2]
[372569387,1752687032625,-600.0,0.00019215,2]
[372569388,1752687032635,-500.0,0.00019215,2]
[372569389,1752687032644,-600.0,0.00019215,2]
[372569390,1752687032654,-151.0,0.00019215,2]
[372569391,1752687032663,-500.0,0.00019215,2]
[372569392,1752687032674,-500.0,0.00019215,2]
[372569393,1752687032687,-400.00000001,0.00019215,2]
[372569394,1752687032697,-500.0,0.00019215,2]
[372569395,1752687032707,-156.71421278,0.00019215,2]
[372569396,1752687032717,-202.491236,0.00019215,2]
[372569397,1752687032727,-1520.54,0.00019227,2]
[372569398,1752687032737,-1520.54,0.00019237,2]
[372569399,1752687032747,-1520.54,0.00019247,2]
[372569400,1752687032758,-1520.54,0.00019257,2]
[372569401,1752687032768,-4031.85600001,0.0001926,2]
[372569402,1752687032778,-213.96859442,0.0001926,2]
[372569403,1752687032787,-3995.61090714,0.0001926,2]
[372569404,1752687032797,-401.19111454,0.0001926,2]
[372569405,1752687032806,-207.4,0.0001926,2]
[372569406,1752687032816,-151.0,0.0001926,2]
[372569407,1752687032827,-170.46,0.00019264,2]
[372569408,1752687032837,-1520.54,0.00019267,2]
[372569409,1752687032846,-1520.54,0.00019277,2]
[372569410,1752687032856,-217.14916957,0.00019279,2]
[372569411,1752687032870,-1520.54,0.00019287,2]
[372569412,1752687032880,-1520.54,0.00019297,2]
[372569413,1752687032890,-1520.54,0.00019307,2]
[372569414,1752687032900,-1425.26937929,0.00019314,2]
[372569415,1752687032910,-1520.54,0.00019318,2]
[372569416,1752687032919,-1520.54,0.00019328,2]
[372569417,1752687032928,-158.12360013,0.00019337,2]
[372569418,1752687032938,-1520.54,0.00019338,2]
[372569419,1752687032947,-1520.54,0.00019348,2]
[372569420,1752687032956,-1520.54,0.00019358,2]
[372569421,1752687032966,-1520.54,0.00019368,2]
[372569422,1752687032975,-1520.54,0.00019378,2]
[372569423,1752687032985,-1520.54,0.00019388,2]
[372569424,1752687032994,-1520.54,0.00019398,2]
[372569425,1752687033004,-1520.54,0.00019409,2]
[372569426,1752687033013,-1520.54,0.00019419,2]
[372569427,1752687033023,-1425.26937929,0.00019452,2]
[372569428,1752687033033,-540.47863938,0.00019533,2]
[372569429,1752687033043,-250.56831572,0.0001955,2]
[372569430,1752687033052,-1425.26937929,0.0001959,2]
[372569431,1752687033062,-537.69,0.00019703,2]
[372569432,1752687033072,-151.0,0.00019726,2]
[372569433,1752687033081,-1425.26937929,0.00019728,2]
[372569434,1752687033091,-214.0,0.00019753,2]
[372569435,1752687033101,-2400.0,0.00019756,2]
[372569436,1752687033112,-900.0,0.00019756,2]
[372569437,1752687033122,-946.06,0.00019841,2]
[372569438,1752687033132,-168.0,0.00019858,2]
[372569439,1752687033142,-1425.26937929,0.00019866,2]
[372569440,1752687033152,-250.6987,0.000199,2]
[372569441,1752687033162,-4336.40385462,0.000199,2]
[372569442,1752687033172,-1222.68452458,0.00019904,2]
[372569443,1752687033182,-1000.0,0.00019925,2]
[372569444,1752687033192,-2416.0,0.00019981,2]
[372569445,1752687033202,-1222.68452454,0.00019982,2]
[372569446,1752687033212,-1626.38,0.0001999,2]
[372569447,1752687033222,-135884.03985888,0.0002,2]
[372569448,1752687033232,-1425.26937929,0.00020003,2]
[372569449,1752687033242,-2500.0,0.00020039,2]
[372569450,1752687033252,-2500.0,0.0002004,2]
[372569451,1752687033261,-250.0,0.0002004,2]
[372569452,1752687033271,-150.0,0.0002004,2]
[372569453,1752687033281,-300.0,0.0002004,2]
[372569454,1752687033291,-1000.0,0.0002004,2]
[372569455,1752687033301,-161.15247804,0.00020041,2]
[372569456,1752687033311,-2500.0,0.00020043,2]
[372569457,1752687033321,-150.0,0.00020043,2]
[372569458,1752687033331,-300.0,0.00020043,2]
[372569459,1752687033342,-1222.68452454,0.0002006,2]
[372569460,1752687033352,-1680.0,0.00020091,2]
[372569461,1752687033364,-1222.68452454,0.00020138,2]
[372569462,1752687033374,-1425.26937929,0.00020141,2]
[372569463,1752687033383,-163.3,0.00020187,2]
[372569464,1752687033395,-500.0,0.00020192,2]
[372569465,1752687033405,-400.0,0.000202,7]
[372569466,1752687033415,-277.22,0.00020202,2]
[372569467,1752687033425,-1222.68452454,0.00020216,2]
[372569468,1752687033435,-1425.26937929,0.00020279,3]
[372569469,1752687033444,-1529.798542,0.00020291,8]
[372569470,1752687033455,-1222.68452454,0.00020294,2]
[372569471,1752687033466,-900.0,0.000203,7]
[372569472,1752687033479,-767.95,0.00020335,2]
[372569473,1752687033489,-1222.68452454,0.00020372,2]
[372569474,1752687033499,-537.69,0.00020391,2]
[372569475,1752687033509,-1400.0,0.000204,7]
[372569476,1752687033519,-4599.0,0.00020416,2]
[372569477,1752687033530,-1425.26937929,0.00020417,3]
[372569478,1752687033540,-181.36837707,0.00020418,2]
[372569479,1752687033550,-175.96,0.00020444,2]
[372569480,1752687033561,-1222.68452454,0.0002045,2]
[372569481,1752687033571,-3572.338,0.000205,2]
[372569482,1752687033581,-1800.0,0.000205,7]
[372569483,1752687033591,-150.99999914,0.000205,2]
[372569484,1752687033601,-17153.71020657,0.000205,2]
[372569485,1752687033615,-1181.0,0.000205,2]
[372569486,1752687033625,-2685.32919142,0.00020506,2]
[372569487,1752687033635,-156.25689644,0.00020506,2]
[372569488,1752687033645,-299.31311573,0.00020509,2]
[372569489,1752687033656,-500.0,0.00020509,2]
[372569490,1752687033666,-421.30635324,0.00020509,2]
[372569491,1752687033678,-351.45086276,0.00020509,2]
[372569492,1752687033690,-500.0,0.00020509,2]
[372569493,1752687033700,-2685.32919139,0.00020517,2]
[372569494,1752687033710,-202.602,0.00020524,2]
[372569495,1752687033721,-1222.68452454,0.00020528,2]
[372569496,1752687033731,-2685.32919139,0.00020528,2]
[372569497,1752687033742,-600.0,0.00020537,2]
[372569498,1752687033754,-600.0,0.00020537,2]
[372569499,1752687033765,-600.0,0.00020537,2]
[372569500,1752687033775,-571.14,0.00020537,2]
[372569501,1752687033785,-2685.32919139,0.00020539,2]
[372569502,1752687033796,-200.0,0.0002054,2]
[372569503,1752687033806,-2416.0,0.00020545,2]
[372569504,1752687033817,-2685.32919139,0.0002055,2]
[372569505,1752687033827,-1000.0,0.00020552,2]
[372569506,1752687033837,-1425.26937929,0.00020555,3]
[372569507,1752687033848,-2685.32919139,0.00020562,2]
[372569508,1752687033858,-1887.93962,0.0002057,2]
[372569509,1752687033869,-2685.32919139,0.00020573,2]
[372569510,1752687033879,-2685.32919139,0.00020584,2]
[372569511,1752687033889,-156.587,0.00020584,2]
[372569512,1752687033899,-2685.32919139,0.00020595,2]
[372569513,1752687033909,-2300.0,0.000206,7]
[372569514,1752687033919,-1626.38,0.000206,2]
[372569515,1752687033928,-46325.4809,0.00020606,2]
[372569516,1752687033938,-5000.0,0.00020606,2]
[372569517,1752687033948,-152.3275368,0.00020606,2]
[372569518,1752687033957,-156.94184904,0.00020606,2]
[372569519,1752687033967,-1222.68452454,0.00020606,2]
[372569520,1752687033977,-2685.32919139,0.00020606,2]
[372569521,1752687033987,-252.21622745,0.00020606,2]
[372569522,1752687033996,-158.76418947,0.00020606,2]
[372569523,1752687034006,-276.94612666,0.00020606,2]
[372569524,1752687034015,-157.60525266,0.00020606,3]
[372569525,1752687034025,-1137.9439045,0.00020606,2]
[372569526,1752687034036,-2429.0268,0.00020606,2]
[372569527,1752687034046,-1000.0,0.00020606,2]
[372569528,1752687034055,-81956.63500688,0.0002061,2]
[372569529,1752687034065,-416.03518578,0.00020629,2]
[372569530,1752687034075,-215.0738,0.00020629,2]
[372569531,1752687034084,-184.84,0.00020641,2]
[372569532,1752687034094,-3842.0,0.00020658,2]
[372569533,1752687034104,-1195.0,0.00020658,2]
[372569534,1752687034114,-5800.0,0.00020675,2]
[372569535,1752687034124,-5800.0,0.00020683,2]
[372569536,1752687034134,-150.0,0.00020685,4]
[372569537,1752687034145,-150.0,0.00020685,4]
[372569538,1752687034155,-101529.0,0.00020685,2]
[372569539,1752687034164,-5800.0,0.00020691,2]
[372569540,1752687034174,-1425.26937929,0.00020693,3]
[372569541,1752687034183,-500.0,0.00020694,2]
[372569542,1752687034193,-150.0,0.00020694,2]
[372569543,1752687034203,-150.0,0.00020694,2]
[372569544,1752687034212,-150.49275652,0.00020694,2]
[372569545,1752687034221,-150.0,0.00020694,2]
[372569546,1752687034231,-500.0,0.00020694,2]
[372569547,1752687034241,-500.0,0.00020694,2]
[372569548,1752687034251,-500.0,0.00020694,2]
[372569549,1752687034261,-150.0,0.00020694,2]
[372569550,1752687034271,-150.0,0.00020694,2]
[372569551,1752687034280,-500.0,0.00020694,2]
[372569552,1752687034290,-500.0,0.00020694,2]
[372569553,1752687034299,-150.26069429,0.00020694,2]
[372569554,1752687034309,-500.0,0.00020694,2]
[372569555,1752687034320,-150.0,0.00020694,2]
[372569556,1752687034329,-500.0,0.00020694,2]
[372569557,1752687034339,-150.0,0.00020694,2]
[372569558,1752687034348,-150.0,0.00020694,2]
[372569559,1752687034360,-500.0,0.00020694,2]
[372569560,1752687034370,-150.0,0.00020694,2]
[372569561,1752687034380,-150.0,0.00020694,2]
[372569562,1752687034389,-150.49211823,0.00020694,2]
[372569563,1752687034399,-500.0,0.00020694,2]
[372569564,1752687034409,-150.0,0.00020694,2]